bitfinex-derivatives/quotes_ETHF0:USTF0_20250910
["timestamp","ask_amount","ask_price","bid_price","bid_amount"]
[1757483627790,0.23167,4300.9,4300.7,0.2978]
[1757483627990,0.1162,4300.8,4300.7,0.2978]
[1757483628294,4.34787,4300.8,4300.1,0.2978]
[1757483628491,0.244,4300.7,4300.6,0.2978]
[1757483628691,0.23167,4300.2,4300.0,0.1173]
[1757483628892,0.1162,4300.8,4300.1,0.2978]
[1757483629088,0.0601,4300.7,4300.0,0.1173]
[1757483629290,0.0601,4300.7,4299.7,0.2978]
[1757483629291,0.0601,4300.7,4299.8,6.2]
[1757483629491,0.1162,4300.8,4300.1,0.2978]
[1757483629995,0.23167,4300.6,4300.1,0.2978]
[1757483630293,0.1162,4300.8,4300.6,0.2978]
[1757483631295,0.246,4301.7,4301.6,0.2978]
[1757483631490,0.47767,4301.7,4301.6,0.2978]
[1757483631692,0.246,4301.7,4301.6,0.2978]
[1757483632088,0.1763,4302.0,4301.6,0.2978]
[1757483632293,33.55738513,4302.1,4302.0,0.4265]
[1757483633292,33.44148513,4302.1,4302.0,0.4265]
[1757483633495,0.00348513,4302.1,4302.0,0.4265]
[1757483634099,0.246,4303.1,4303.0,0.4265]
[1757483634795,0.23167,4303.1,4303.0,0.4265]
[1757483635002,0.23167,4303.1,4302.6,0.2978]
[1757483635200,0.23167,4302.7,4302.5,0.1287]
[1757483635499,0.1159,4303.5,4303.0,0.1287]
[1757483635799,0.23167,4303.4,4303.1,0.2978]
[1757483636198,0.1159,4303.5,4303.1,0.2978]
[1757483640901,0.1159,4303.5,4303.3,0.2978]
[1757483641098,0.246,4303.9,4303.5,0.1287]
[1757483641502,0.23167,4303.6,4303.5,0.1287]
[1757483641698,0.23167,4303.6,4303.5,0.4265]
[1757483642902,4.41147,4303.6,4302.6,0.2978]
[1757483643205,4.41147,4303.6,4302.5,0.1287]
[1757483643206,0.1798,4303.4,4302.5,0.1287]
[1757483643497,4.01922394,4303.4,4302.1,0.2978]
[1757483643704,0.1798,4303.3,4302.0,0.4265]
[1757483643901,0.23167,4302.1,4301.5,0.1287]
[1757483644201,0.23167,4302.0,4301.5,0.1287]
[1757483644704,0.246,4302.1,4301.5,0.1287]
[1757483644897,0.23167,4301.9,4301.5,0.1287]
[1757483645098,0.23167,4301.8,4301.5,0.1287]
[1757483645298,0.23167,4301.8,4301.6,0.2978]
[1757483645507,0.23167,4301.8,4301.5,0.1287]
[1757483645901,0.23167,4301.8,4301.6,0.2978]
[1757483646097,0.23167,4301.8,4301.5,0.1287]
[1757483646302,0.246,4302.1,4301.5,0.1287]
[1757483646303,0.23167,4301.7,4301.6,0.2978]
[1757483646501,0.23167,4301.6,4301.5,0.4265]
[1757483646702,0.23167,4301.6,4301.5,0.2978]
[1757483647005,0.23167,4301.6,4301.0,0.1287]
[1757483647006,0.41147,4301.6,4301.0,0.1287]
[1757483647198,0.246,4302.1,4301.0,0.1287]
[1757483647199,0.23167,4301.2,4301.1,0.2978]
[1757483647399,0.41867,4301.2,4301.1,0.2978]
[1757483647601,0.187,4301.2,4301.1,0.2978]
[1757483648406,0.187,4301.2,4301.1,0.57941354]
[1757483648797,33.6588,4301.8,4301.1,0.57941354]
[1757483648997,33.6588,4301.8,4301.1,0.2978]
[1757483648998,0.23167,4301.2,4301.1,0.2978]
[1757483649197,0.47667,4301.2,4301.1,0.57941441]
[1757483649398,0.81439346,4301.2,4301.1,0.57941441]
[1757483649599,0.56939346,4301.2,4301.1,0.57941441]
[1757483649901,0.245,4301.2,4301.1,0.57941441]
[1757483650106,0.81439346,4301.2,4301.1,0.57941441]
[1757483650503,0.56939346,4301.2,4301.1,0.57941441]
[1757483650701,0.245,4301.2,4301.1,0.57941441]
[1757483650903,0.81439346,4301.2,4301.1,0.57941441]
[1757483651406,4.81439346,4301.2,4300.2,0.2978]
[1757483651607,0.56939346,4301.1,4300.2,0.2978]
[1757483651797,0.23167,4300.3,4300.2,0.2978]
[1757483652001,1.04606346,4300.3,4300.2,0.2978]
[1757483654104,0.80106346,4300.3,4300.2,0.2978]
[1757483654404,1.04606346,4300.3,4300.2,0.2978]
[1757483655006,1.04606346,4300.3,4300.0,0.1287]
[1757483655205,0.23167,4300.1,4300.0,0.1287]
[1757483655405,1.04606346,4300.1,4300.0,0.4265]
[1757483656711,1.04606346,4300.1,4299.5,0.4265]
[1757483656911,1.04606346,4300.1,4299.5,0.1287]
[1757483656912,0.23167,4299.7,4299.5,0.1287]
[1757483657113,0.245,4300.1,4299.6,0.3214]
[1757483657411,0.23167,4299.6,4299.5,0.1287]
[1757483657910,0.47667,4299.6,4299.5,0.1287]
[1757483658111,0.79788423,4299.6,4299.5,0.4501]
[1757483658406,1.04288423,4299.6,4299.5,0.4501]
[1757483659311,5.04288423,4299.6,4299.0,0.1287]
[1757483659507,5.04288423,4299.6,4298.0,0.1287]
[1757483659508,0.23167,4299.1,4298.6,0.3214]
[1757483659712,0.23167,4298.7,4298.6,0.3214]
[1757483659906,0.56621423,4298.9,4298.6,0.3214]
[1757483660206,0.23167,4298.7,4298.0,0.1287]
[1757483660411,0.23167,4298.3,4298.1,0.3214]
[1757483660716,1.04288423,4298.2,4298.1,0.3214]
[1757483661204,5.04387423,4298.2,4297.5,0.1171]
[1757483661509,5.04387423,4298.2,4297.0,0.1171]
[1757483661510,4.25089394,4297.6,4297.0,0.4385]
[1757483661804,0.56621423,4297.5,4297.1,0.3214]
[1757483662011,0.56621423,4297.4,4297.1,0.3214]
[1757483662198,0.56621423,4297.3,4297.1,0.3214]
[1757483662405,0.169,4297.2,4297.1,0.3214]
[1757483662606,1.24990139,4299.4,4297.6,0.3214]
[1757483662805,4.01922394,4299.1,4297.6,0.3214]
[1757483663001,4.01922394,4299.1,4298.0,0.1171]
[1757483663002,0.56158827,4299.0,4298.0,0.1171]
[1757483663211,0.80658827,4298.9,4298.5,0.1171]
[1757483663411,0.23167,4298.6,4297.9,0.3214]
[1757483663606,4.01922394,4298.1,4297.5,0.1171]
[1757483663805,0.80658827,4298.0,4297.5,0.1171]
[1757483664009,0.23167,4297.7,4297.6,0.3214]
[1757483664209,0.245,4297.7,4297.6,0.3214]
[1757483664516,0.221,4297.7,4297.6,0.3214]
[1757483665311,4.01922394,4298.8,4297.6,0.3214]
[1757483665517,0.23167,4298.4,4298.0,0.1171]
[1757483665709,0.55062132,4298.3,4298.0,0.1171]
[1757483665905,4.01922394,4298.8,4298.1,0.3214]
[1757483666110,0.7956214,4298.7,4298.5,0.1171]
[1757483666313,0.23167,4298.8,4298.6,0.3214]
[1757483666514,0.245,4298.7,4298.6,0.3214]
[1757483666720,0.23167,4299.0,4298.6,0.3214]
[1757483666910,0.55066729,4298.9,4298.6,0.3214]
[1757483667111,0.245,4298.8,4298.6,0.3214]
[1757483667311,0.245,4298.7,4298.6,0.3214]
[1757483667514,0.79567943,4298.7,4298.6,0.3214]
[1757483667921,0.55067943,4298.7,4298.6,0.3214]
[1757483668312,0.79567943,4298.7,4298.6,0.3214]
[1757483668618,0.79567943,4298.7,4298.1,0.3214]
[1757483668619,4.81490337,4298.7,4298.1,0.3214]
[1757483668816,0.23167,4298.2,4298.1,0.3214]
[1757483669017,4.26422394,4298.7,4298.1,0.3214]
[1757483669218,0.23167,4298.2,4298.1,0.3214]
[1757483669421,4.01922394,4299.4,4298.1,0.3214]
[1757483669619,0.79608011,4299.3,4298.1,0.3214]
[1757483669822,0.23167,4298.8,4298.5,0.1171]
[1757483670016,4.26422394,4298.7,4298.6,0.3214]
[1757483671319,4.01922394,4299.2,4299.1,0.3214]
[1757483671520,4.81584969,4299.2,4299.1,0.3214]
[1757483672415,4.57084969,4299.2,4299.1,0.3214]
[1757483672615,4.81584969,4299.2,4299.1,0.3214]
[1757483672918,4.81584969,4299.2,4299.1,4.3214]
[1757483672919,4.26422394,4299.2,4299.1,4.3214]
[1757483673416,4.81689675,4299.2,4299.1,0.3214]
[1757483673620,5.13569675,4299.2,4298.5,0.1171]
[1757483673921,0.55267281,4299.1,4298.5,0.1171]
[1757483674122,0.55267281,4299.1,4299.0,0.1171]
[1757483674509,0.79767281,4299.1,4299.0,0.1171]
[1757483675019,0.55267281,4299.1,4299.0,0.1171]
[1757483675221,0.79667281,4299.1,4299.0,0.1171]
[1757483675722,0.55267281,4299.1,4299.0,0.4385]
[1757483676020,0.79667281,4299.1,4299.0,4.4385]
[1757483676233,4.01922394,4299.9,4299.1,0.3214]
[1757483676515,4.01922394,4299.9,4299.0,4.1171]
[1757483676516,0.55142466,4299.7,4299.6,0.3214]
[1757483676719,0.79542466,4299.7,4299.6,0.3214]
[1757483676915,0.55142466,4299.7,4299.6,0.3214]
[1757483677110,0.79542466,4299.7,4299.6,0.3214]
[1757483677920,0.55142466,4299.7,4299.6,0.3214]
[1757483678113,4.01922394,4299.9,4299.6,0.3214]
[1757483678314,0.244,4299.7,4299.6,0.3214]
[1757483678514,4.01922394,4299.9,4299.5,0.1171]
[1757483678719,4.01922394,4299.9,4299.6,0.3214]
[1757483679018,0.244,4299.7,4299.6,0.3214]
[1757483679423,4.01922394,4299.9,4299.6,0.3214]
[1757483679619,0.244,4299.7,4299.6,0.3214]
[1757483679815,33.511,4300.2,4299.6,0.3214]
[1757483680216,33.511,4300.2,4299.6,4.0]
[1757483680523,0.244,4299.9,4299.7,4.3214]
[1757483680822,0.244,4299.9,4299.7,4.0]
[1757483681027,0.244,4299.9,4299.8,0.3214]
[1757483681522,33.511,4300.2,4300.0,0.1171]
[1757483681720,33.511,4300.2,4300.0,0.4385]
[1757483681924,0.244,4300.1,4300.0,0.1171]
[1757483682122,33.511,4300.2,4300.0,0.1171]
[1757483682322,0.244,4300.1,4300.0,0.1171]
[1757483682620,0.1161,4300.5,4300.1,0.3214]
[1757483682921,0.244,4300.4,4300.1,0.3214]
[1757483683116,0.244,4300.3,4300.1,0.3214]
[1757483683316,0.1161,4300.5,4300.1,0.3214]
[1757483683522,0.244,4300.4,4300.1,0.3214]
[1757483684020,0.1161,4300.5,4300.1,0.3214]
[1757483684222,0.3601,4300.5,4300.1,0.3214]
[1757483684825,0.1161,4300.5,4300.1,0.3214]
[1757483685227,0.319,4300.3,4299.7,0.3214]
[1757483685429,0.319,4299.9,4298.9,0.3214]
[1757483685614,0.1066,4300.0,4298.6,0.3214]
[1757483685615,0.23167,4299.4,4298.6,0.3214]
[1757483685927,0.182,4299.3,4298.6,6.2]
[1757483686127,0.182,4299.3,4298.7,0.3214]
[1757483686722,0.164,4299.3,4298.7,0.3214]
[1757483687528,0.2922,4299.2,4298.7,0.3214]
[1757483687833,0.52387,4299.0,4298.7,0.3045]
[1757483688026,0.2922,4299.0,4298.6,6.2]
[1757483688427,0.52387,4299.0,4298.7,0.3045]
[1757483689129,0.52387,4299.0,4298.6,6.2]
[1757483689921,0.52387,4299.0,4298.7,0.3045]
[1757483690122,0.52387,4299.0,4298.6,6.2]
[1757483690728,0.7077,4299.0,4298.9,0.2021]
[1757483690928,0.7077,4299.0,4298.9,0.5066]
[1757483691237,0.93937,4299.0,4298.9,0.5066]
[1757483693326,0.64717,4299.0,4298.9,0.7144]
[1757483693529,0.7077,4299.9,4299.8,0.5066]
[1757483693728,1.50061683,4299.9,4299.1,0.3045]
[1757483693931,0.64717,4299.5,4299.4,0.2021]
[1757483694234,0.64717,4299.5,4299.4,0.5066]
[1757483694423,0.64717,4299.5,4299.4,0.7144]
[1757483695027,0.44767,4299.5,4299.4,0.7144]
[1757483695225,0.44567,4299.5,4299.4,0.7144]
[1757483695429,0.65297,4299.5,4299.4,0.7144]
[1757483696839,0.43897,4299.5,4299.4,0.7144]
[1757483699435,0.2073,4299.5,4299.4,0.7144]
[1757483700132,0.2073,4299.7,4299.6,0.4099]
[1757483700334,0.194,4300.0,4299.7,0.3045]
[1757483700531,0.2073,4300.0,4299.9,0.7144]
[1757483700834,0.2073,4300.3,4300.2,0.7144]
[1757483701436,0.4155,4300.3,4300.2,0.7144]
[1757483701633,1.49046757,4300.3,4299.6,0.3045]
[1757483701833,0.93937,4299.7,4299.6,0.3045]
[1757483702231,0.7077,4299.7,4299.6,0.3045]
[1757483703339,0.9507,4299.7,4299.1,0.3045]
[1757483703530,0.4155,4299.2,4298.6,6.2]
[1757483703838,0.4155,4299.2,4298.9,0.3045]
[1757483704035,0.2073,4298.6,4298.5,0.527]
[1757483704540,0.2073,4298.6,4298.5,0.8315]
[1757483704737,0.2922,4299.1,4298.6,0.3045]
[1757483704940,0.93937,4299.0,4298.9,0.5066]
[1757483705140,0.7077,4299.0,4298.9,0.5066]
[1757483705339,0.7077,4299.0,4298.6,0.3045]
[1757483705537,0.2073,4298.2,4298.1,0.5066]
[1757483705735,0.4155,4298.2,4298.1,0.5066]
[1757483705936,0.4155,4298.2,4298.1,0.7144]
[1757483706328,0.2922,4298.5,4298.1,0.4099]
[1757483706535,0.64717,4298.5,4298.4,0.7144]
[1757483706736,0.4155,4298.5,4298.4,0.7144]
[1757483707041,0.64717,4298.5,4298.4,0.7144]
[1757483707839,0.242,4298.7,4298.6,0.7144]
[1757483708039,0.6575,4298.7,4298.6,0.7144]
[1757483709041,0.242,4298.7,4298.6,0.7144]
[1757483709532,0.399,4299.5,4298.6,0.4099]
[1757483709737,0.11629741,4299.4,4298.7,0.3045]
[1757483709938,0.43897,4299.0,4298.9,0.4099]
[1757483710137,0.43897,4299.0,4298.9,0.7144]
[1757483710437,0.64717,4299.0,4298.9,0.7144]
[1757483712043,0.23167,4299.0,4298.9,0.7144]
[1757483712340,0.2922,4299.6,4299.1,0.3045]
[1757483712532,0.174,4299.5,4299.1,0.3045]
[1757483712738,0.8817,4299.5,4299.4,0.5066]
[1757483713038,1.11337,4299.5,4299.4,0.5066]
[1757483714041,1.18137,4299.5,4299.4,0.5066]
[1757483714243,1.00557072,4299.5,4299.4,0.7144]
[1757483714443,1.84886936,4299.5,4299.4,0.7144]
[1757483714746,1.29777072,4299.5,4299.4,0.7144]
[1757483714943,0.64717,4299.5,4299.4,0.7144]
[1757483715143,1.00565322,4299.5,4299.4,0.7144]
[1757483715445,1.55711862,4299.5,4299.4,0.7144]
[1757483715635,1.18137,4299.5,4299.4,0.7144]
[1757483716346,0.88917,4299.5,4299.4,0.7144]
[1757483716547,0.64717,4299.5,4299.4,0.7144]
[1757483716741,0.1161,4299.7,4299.4,0.4099]
[1757483716938,0.47367,4299.6,4299.5,0.8327]
[1757483717649,0.23167,4299.6,4299.5,0.8327]
[1757483717854,0.6994,4299.1,4299.0,0.5014]
[1757483718046,0.63077,4299.1,4298.5,0.1183]
[1757483718349,0.1949,4298.7,4298.6,0.6991]
[1757483720143,0.3003,4299.4,4298.7,0.2995]
[1757483720348,0.42657,4299.0,4298.9,0.6991]
[1757483720650,0.5152,4299.7,4299.6,0.6991]
[1757483720853,1.05689471,4299.7,4299.6,0.6991]
[1757483721050,1.60841986,4299.7,4299.6,0.6991]
[1757483721349,1.05689471,4299.7,4299.6,0.6991]
[1757483722143,0.81589471,4299.7,4299.6,0.6991]
[1757483722453,1.05689471,4299.7,4299.6,0.6991]
[1757483723246,0.3003,4299.6,4299.0,0.4182]
[1757483723552,0.93107,4299.1,4299.0,0.5014]
[1757483723752,1.17207,4299.1,4299.0,0.5014]
[1757483724051,0.87177,4299.1,4299.0,0.8178]
[1757483725051,0.3991,4299.1,4299.0,0.8178]
[1757483725345,0.6994,4299.7,4299.6,0.2019]
[1757483725548,0.51560976,4299.7,4299.6,0.6991]
[1757483725854,0.75660976,4299.7,4299.6,0.6991]
[1757483726542,0.51560976,4299.7,4299.6,0.6991]
[1757483726739,1.05690976,4299.7,4299.6,0.6991]
[1757483726938,0.9404,4299.7,4299.6,0.6991]
[1757483728149,0.4359,4299.7,4299.6,0.6991]
[1757483728454,0.241,4299.7,4299.6,0.6991]
[1757483729354,0.241,4299.7,4299.6,0.3996]
[1757483729946,0.241,4299.7,4299.6,0.6991]
[1757483730146,0.1161,4299.9,4299.6,0.6991]
[1757483730346,0.1161,4299.9,4299.8,0.6991]
[1757483733451,0.1161,4299.9,4299.8,4.6991]
[1757483733651,0.241,4300.4,4300.3,0.6991]
[1757483734049,0.1949,4300.5,4300.4,0.4972]
[1757483734259,0.42657,4300.5,4300.4,0.6991]
[1757483734459,0.1949,4300.5,4300.4,0.6991]
[1757483735460,0.241,4300.6,4300.5,0.8178]
[1757483735851,0.66757,4300.6,4300.5,0.8178]
[1757483736758,0.42657,4300.6,4300.5,0.8178]
[1757483736956,0.66757,4300.6,4300.5,0.8178]
[1757483738055,0.87177,4300.6,4300.5,0.8178]
[1757483738256,1.17207,4300.6,4300.5,0.8178]
[1757483738858,1.17207,4300.6,4300.5,0.6991]
[1757483739666,1.17207,4300.6,4300.5,0.5014]
[1757483739966,1.17207,4300.6,4300.5,0.2019]
[1757483740258,0.1949,4300.1,4300.0,0.8178]
[1757483743565,0.3003,4300.3,4300.0,0.8178]
[1757483743774,0.6401,4300.6,4300.5,0.2019]
[1757483744069,0.3003,4301.0,4300.6,0.2995]
[1757483744260,0.3003,4301.5,4300.8,0.2995]
[1757483744468,0.4349,4301.4,4301.3,0.6991]
[1757483744866,0.3991,4300.7,4300.6,6.2]
[1757483745071,0.6994,4300.7,4300.6,6.2]
[1757483745376,0.6994,4300.7,4300.6,0.2019]
[1757483745672,0.24,4301.3,4301.0,0.1187]
[1757483745874,0.3991,4300.7,4300.6,0.5014]
[1757483746076,0.6994,4300.7,4300.6,0.6991]
[1757483747179,0.3024,4301.1,4300.6,0.6991]
[1757483747474,0.23167,4300.7,4300.6,0.6991]
[1757483747674,0.44167,4300.7,4300.6,0.6991]
[1757483747874,0.21,4300.7,4300.6,0.6991]
[1757483748876,0.3024,4301.1,4300.7,0.3215]
[1757483749078,0.23167,4300.8,4300.7,0.7293]
[1757483749274,0.23167,4300.9,4300.7,0.7293]
[1757483749469,0.23167,4300.9,4300.8,0.3215]
[1757483749674,0.5424,4301.3,4300.9,0.3215]
[1757483749973,0.6656,4301.3,4301.2,0.7293]
[1757483750475,0.65727,4301.3,4301.2,0.7293]
[1757483750670,0.44167,4301.3,4301.2,0.7293]
[1757483752774,0.21,4301.3,4301.2,0.7293]
[1757483752972,0.44167,4301.3,4301.2,0.7293]
[1757483754080,0.23167,4301.3,4301.2,0.7293]
[1757483754879,0.5124,4302.2,4302.1,0.2116]
[1757483755183,0.728,4302.2,4302.1,0.7293]
[1757483755481,1.39253162,4302.2,4300.6,0.3215]
[1757483755673,0.728,4301.2,4301.1,0.5331]
[1757483755868,0.1175,4302.0,4301.1,0.5331]
[1757483755869,0.3024,4301.7,4301.2,0.3215]
[1757483756079,0.968,4302.3,4302.2,0.5331]
[1757483756279,1.63250217,4302.3,4302.2,0.5331]
[1757483756479,2.09661217,4302.3,4301.6,0.3215]
[1757483756681,0.728,4301.7,4301.6,0.7293]
[1757483756879,0.95967,4301.7,4301.6,0.7293]
[1757483757179,0.728,4301.7,4301.6,0.7293]
[1757483757681,0.4256,4301.7,4301.6,0.7293]
[1757483759682,33.502,4302.4,4301.5,0.1173]
[1757483759683,34.23,4302.4,4302.3,0.2116]
[1757483759878,35.13478794,4302.4,4302.3,0.7293]
[1757483760378,35.13478794,4302.4,4301.9,0.3215]
[1757483760585,0.728,4302.0,4301.9,0.5331]
[1757483760883,0.95967,4302.0,4301.9,0.7293]
[1757483761680,0.65727,4302.0,4301.9,0.7293]
[1757483761887,33.742,4302.4,4302.0,0.8466]
[1757483761888,0.24,4302.1,4302.0,0.8466]
[1757483762086,33.502,4302.4,4302.0,0.5251]
[1757483762390,0.45,4302.2,4302.1,0.7293]
[1757483762580,0.21,4302.2,4302.1,0.7293]
[1757483762983,0.728,4302.2,4302.1,0.7293]
[1757483764186,0.728,4302.2,4301.8,0.3215]
[1757483764390,0.95967,4302.0,4301.9,0.5331]
[1757483764692,0.95967,4301.7,4301.6,0.7293]
[1757483765187,0.728,4301.7,4301.6,0.7293]
[1757483765988,0.4256,4301.7,4301.6,0.7293]
[1757483766580,0.5424,4302.3,4302.2,0.2116]
[1757483766781,0.4256,4302.3,4302.2,0.7293]
[1757483766985,0.68167,4302.3,4302.2,0.7293]
[1757483767386,1.19967,4302.3,4302.2,0.7293]
[1757483767590,0.1175,4304.0,4302.3,0.3215]
[1757483767591,0.3024,4303.4,4302.3,0.3215]
[1757483767786,0.23167,4302.8,4302.7,0.7293]
[1757483768283,0.21,4302.8,4302.7,0.4078]
[1757483768785,0.1175,4304.0,4302.7,0.4078]
[1757483768988,1.74859837,4303.9,4303.8,0.5331]
[1757483769187,1.20038,4303.9,4303.8,0.7293]
[1757483769384,0.3024,4303.8,4303.6,0.3215]
[1757483769584,0.728,4303.7,4303.6,0.5331]
[1757483769890,0.95967,4303.7,4303.6,0.5331]
[1757483770092,0.728,4303.7,4303.6,0.5331]
[1757483770389,0.968,4304.3,4304.2,0.5331]
[1757483770796,1.19967,4304.3,4304.2,0.5331]
[1757483771094,0.3024,4304.9,4304.3,0.3215]
[1757483771391,0.1175,4305.0,4303.1,0.7293]
[1757483771392,0.21,4303.2,4303.1,0.7293]
[1757483772091,0.728,4303.2,4303.1,6.9293]
[1757483774587,0.21,4303.2,4303.1,6.9293]
[1757483775389,0.3024,4303.6,4303.1,6.6078]
[1757483775688,0.23167,4303.4,4303.3,0.7293]
[1757483775894,0.44167,4303.4,4303.3,0.7293]
[1757483776093,0.21,4303.4,4303.3,0.7293]
[1757483776894,0.8767,4303.9,4303.8,0.7166]
[1757483777196,0.5743,4303.9,4303.1,6.2]
[1757483777394,0.44677,4303.4,4303.3,0.7166]
[1757483777892,0.2151,4303.4,4303.3,0.7166]
[1757483778397,0.7084,4303.4,4303.3,0.7166]
[1757483779802,0.2151,4303.4,4303.3,0.7166]
[1757483780095,0.5743,4303.9,4303.8,0.1989]
[1757483780296,0.8664,4303.9,4303.8,0.501]
[1757483780798,0.8664,4303.9,4303.5,0.501]
[1757483780799,0.4163,4303.6,4303.5,0.501]
[1757483781097,0.94007,4303.6,4303.5,0.501]
[1757483782796,0.94007,4303.6,4303.5,0.7166]
[1757483782797,0.7084,4303.6,4303.5,0.7166]
[1757483783097,0.94007,4303.6,4303.5,0.7166]
[1757483785099,0.94007,4303.6,4303.5,0.844]
[1757483785897,0.23167,4303.6,4303.5,0.844]
[1757483786198,0.44677,4303.6,4303.5,0.844]
[1757483786794,0.73887,4303.6,4303.5,0.844]
[1757483786994,0.44677,4303.6,4303.5,0.844]
[1757483787189,0.94007,4303.6,4303.5,0.844]
[1757483787388,0.94007,4303.6,4303.5,0.7166]
[1757483788898,0.23167,4303.6,4303.5,0.7166]
[1757483789209,0.23167,4303.6,4303.5,0.844]
[1757483790098,0.44677,4303.6,4303.5,0.844]
[1757483791504,0.94007,4303.6,4303.5,0.844]
[1757483791695,0.94007,4303.6,4303.5,0.7166]
[1757483792096,0.94007,4303.6,4303.5,0.1989]
[1757483793000,0.94007,4303.6,4303.2,0.3021]
[1757483793310,0.94007,4303.4,4303.3,0.501]
[1757483793800,0.7084,4303.4,4303.3,0.501]
[1757483794206,0.7084,4303.4,4302.7,0.3021]
[1757483794207,0.2921,4303.3,4302.7,0.3021]
[1757483794400,0.94007,4302.9,4302.8,0.7166]
[1757483794596,0.7084,4302.9,4302.6,0.3021]
[1757483794999,0.94007,4302.7,4302.6,0.501]
[1757483795302,0.94007,4302.7,4302.6,0.7166]
[1757483795503,0.7084,4302.7,4302.6,0.7166]
[1757483798926,0.7084,4302.7,4302.1,0.3021]
[1757483799219,0.2151,4302.2,4302.1,0.4145]
[1757483799422,0.23167,4302.6,4302.1,0.4145]
[1757483799622,0.44677,4302.6,4302.5,0.844]
[1757483799822,0.4163,4302.6,4302.5,0.844]
[1757483800021,0.7084,4302.6,4302.5,0.501]
[1757483800223,0.94007,4302.6,4302.5,0.501]
[1757483801518,0.23167,4302.6,4302.5,0.844]
[1757483801722,0.26361161,4302.6,4302.5,0.844]
[1757483802126,0.03194161,4302.6,4302.5,0.844]
[1757483802623,0.74034161,4302.6,4302.5,0.7166]
[1757483803026,0.74034161,4302.6,4302.5,0.844]
[1757483803323,0.44824161,4302.6,4302.5,0.844]
[1757483803524,0.24704161,4302.6,4302.5,0.844]
[1757483803826,0.03194161,4302.6,4302.5,0.844]
[1757483809528,0.47101161,4302.6,4302.5,0.844]
[1757483810830,0.26361161,4302.6,4302.5,0.844]
[1757483811530,0.47101161,4302.6,4302.5,0.844]
[1757483811731,0.96981161,4302.6,4302.5,0.501]
[1757483811929,0.96981161,4302.6,4302.5,0.715]
[1757483812331,0.96981161,4302.6,4302.5,0.8337]
[1757483812833,0.73814161,4302.6,4302.5,0.8337]
[1757483813133,0.67151161,4302.6,4302.5,0.8337]
[1757483815125,0.96981161,4302.6,4302.5,0.8337]
[1757483815329,1.03556481,4303.7,4302.6,0.3188]
[1757483815530,0.23167,4303.0,4302.9,0.7471]
[1757483815935,0.2074,4303.1,4303.0,0.547]
[1757483816423,0.43907,4303.1,4303.0,0.8658]
[1757483816625,0.4464,4303.5,4303.4,0.7471]
[1757483816823,1.111989,4303.5,4303.4,0.7471]
[1757483817033,1.603459,4303.5,4303.4,0.7471]
[1757483817635,0.897259,4303.5,4303.4,0.7471]
[1757483817831,0.2983,4304.2,4303.5,0.1187]
[1757483818029,0.23167,4303.6,4303.5,0.8658]
[1757483818436,0.2983,4304.2,4303.5,0.8658]
[1757483818634,1.24990139,4305.4,4303.9,1.03556481]
[1757483818930,0.5057,4305.3,4305.2,1.03556481]
[1757483819133,0.1259,4305.5,4305.2,1.03556481]
[1757483819327,0.2983,4305.9,4305.2,1.03556481]
[1757483819636,0.2983,4305.9,4305.7,1.03556481]
[1757483819826,0.2074,4305.8,4305.3,7.23556481]
[1757483820030,0.2983,4305.7,4305.3,7.23556481]
[1757483820432,0.5057,4305.9,4305.3,7.23556481]
[1757483820937,0.4242,4306.5,4305.8,1.03556481]
[1757483821129,0.4242,4306.5,4306.4,1.03556481]
[1757483821325,0.5057,4306.9,4305.7,0.24]
[1757483821530,0.5057,4306.9,4306.3,1.03556481]
[1757483822226,0.2983,4307.4,4306.7,1.03556481]
[1757483822430,0.2983,4307.4,4306.3,0.24]
[1757483822632,0.1259,4307.5,4306.4,1.2677548]
[1757483822633,0.2983,4306.9,4306.4,1.2677548]
[1757483822827,0.1259,4306.0,4305.4,1.65528993]
[1757483823032,0.1259,4306.0,4305.5,0.241]
[1757483823033,0.2983,4305.9,4305.5,0.241]
[1757483823236,0.2983,4305.9,4305.4,1.03556481]
[1757483823537,0.4242,4305.5,4305.4,1.03556481]
[1757483824432,0.4242,4305.5,4305.3,6.441]
[1757483824936,0.2983,4305.9,4305.3,6.441]
[1757483825632,0.5057,4305.9,4305.3,6.441]
[1757483826234,0.2983,4305.8,4305.3,6.2]
[1757483826533,0.2983,4305.4,4304.2,0.241]
[1757483826832,0.2983,4305.4,4304.3,6.2]
[1757483827039,0.2983,4304.4,4304.3,6.441]
[1757483827230,0.1259,4304.5,4304.3,6.441]
[1757483828836,0.1259,4304.5,4304.4,0.241]
[1757483829045,0.4242,4304.5,4304.4,0.241]
[1757483830141,0.2983,4304.4,4304.3,6.2]
[1757483830345,0.2983,4304.4,4304.3,6.441]
[1757483832143,0.2983,4304.8,4304.3,6.441]
[1757483832546,0.2983,4304.6,4304.3,6.441]
[1757483832745,0.4242,4304.5,4304.3,6.441]
[1757483833647,0.2983,4304.4,4304.3,6.2]
[1757483833942,0.5057,4304.4,4304.3,6.44]
[1757483835541,0.1259,4305.0,4304.3,10.44]
[1757483835847,0.1259,4305.0,4304.7,3.54251671]
[1757483836047,0.5057,4304.8,4304.7,0.24]
[1757483836434,0.2983,4304.8,4304.7,0.24]
[1757483837043,0.3036,4305.4,4304.7,7.78251671]
[1757483837249,0.5177,4305.4,4304.7,3.78251671]
[1757483837439,0.3036,4305.3,4304.7,3.78251671]